bitfinex/quotes_ETHUSD_20220215
["timestamp","ask_amount","ask_price","bid_price","bid_amount"]
[1644937149771,3.39103002,3120.2,3120.1,0.27982269]
[1644937150072,2.51579569,3120.2,3120.1,0.27982269]
[1644937151035,2.51579569,3120.2,3119.8,7.43516106]
[1644937151036,6.03543409,3120.2,3119.8,7.43516106]
[1644937151233,6.03543409,3120.2,3119.8,0.00516106]
[1644937151234,2.51579569,3119.9,3119.8,0.00516106]
[1644937151440,3.51579569,3119.9,3119.8,0.00516106]
[1644937151633,2.51579569,3119.9,3119.8,0.00516106]
[1644937157821,2.51579569,3120.1,3119.8,0.00516106]
[1644937158022,0.00547351,3120.2,3119.9,0.80104]
[1644937158222,2.51579569,3120.0,3119.9,0.78062]
[1644937158424,2.51579569,3120.0,3119.9,0.48062]
[1644937158624,2.51579569,3120.0,3119.9,0.78062]
[1644937158822,2.51579569,3120.0,3119.9,0.48062]
[1644937159021,2.51579569,3120.0,3119.9,0.78062]
[1644937159421,2.51579569,3120.0,3119.9,0.48062]
[1644937159622,2.51579569,3120.0,3119.9,0.78062]
[1644937159923,2.51579569,3120.0,3119.7,0.48069]
[1644937159924,2.51579569,3120.0,3119.8,0.00279873]
[1644937160721,2.51579569,3120.0,3119.7,0.24038]
[1644937160923,4.43474482,3120.3,3119.7,0.24038]
[1644937160924,3.56313826,3119.8,3119.7,0.24038]
[1644937161124,2.51579569,3119.8,3119.7,0.24318734]
[1644937161608,2.81579569,3119.8,3119.4,0.08977653]
[1644937161810,2.51579569,3119.5,3119.4,0.08977653]
[1644937162408,3.39274575,3119.5,3119.4,0.08977653]
[1644937163209,3.39274575,3119.5,3118.9,0.24044]
[1644937163407,2.51579569,3119.0,3118.9,0.24044]
[1644937165822,2.51579569,3119.0,3118.9,0.40286308]
[1644937166023,2.51579569,3119.0,3118.9,0.24044]
[1644937166224,2.51579569,3119.0,3118.9,1.04178]
[1644937166424,0.00545907,3119.9,3118.9,1.04178]
[1644937166425,2.51579569,3119.1,3118.9,1.04178]
[1644937167730,2.51579569,3119.5,3119.0,1.1012]
[1644937167926,0.00545907,3119.9,3119.1,0.24036]
[1644937168127,2.51579569,3119.6,3119.1,19.30536]
[1644937168325,0.00545907,3119.9,3119.1,0.62536]
[1644937168527,0.00545907,3119.9,3119.2,1.0]
[1644937168725,0.00545907,3119.9,3119.4,0.80116]
[1644937168926,1.17410049,3120.1,3119.4,1.5222006]
[1644937169172,0.128303,3120.0,3119.4,1.0210406]
[1644937169371,0.00541572,3120.1,3119.5,0.0027887]
[1644937169873,0.00541572,3120.1,3119.5,0.4834664]
[1644937170072,0.00541572,3120.1,3119.6,19.48115]
[1644937170277,0.00541572,3120.1,3119.7,0.78058]
[1644937170474,0.00541572,3120.1,3119.7,1.78058]
[1644937170874,0.00541572,3120.1,3119.7,0.78058]
[1644937171472,0.00541572,3120.1,3119.8,0.80092]
[1644937171672,0.00541572,3120.1,3119.8,1.5218084]
[1644937171873,0.00541572,3120.1,3119.9,0.3]
[1644937172076,0.00541572,3120.1,3119.9,1.08057]
[1644937172273,0.00541572,3120.1,3119.9,0.78057]
[1644937172573,0.00541572,3120.1,3120.0,1.10094]
[1644937172829,1.16116464,3120.1,3120.0,0.3]
[1644937173425,0.00541572,3120.1,3120.0,0.3]
[1644937174026,0.00546388,3120.8,3120.1,0.24033]
[1644937174226,0.00775903,3120.8,3120.0,0.3]
[1644937175026,0.00775903,3120.8,3120.0,0.54036]
[1644937175230,0.00546388,3120.8,3120.0,0.54036]
[1644937175427,1.17359293,3120.7,3119.7,0.3]
[1644937175628,1.01353778,3119.8,3119.7,0.3]
[1644937175826,1.01353778,3119.8,3119.5,0.0026947]
[1644937175827,1.80128,3120.5,3119.5,0.0026947]
[1644937176026,1.80128,3120.5,3119.5,0.2430747]
[1644937176027,7.3718,3120.4,3119.5,0.2430747]
[1644937176226,3.41047854,3120.4,3119.5,0.2430747]
[1644937176427,1.1464,3120.7,3119.5,0.24038]
[1644937176670,1.1464,3120.7,3119.5,0.24307461]
[1644937176871,2.1464,3120.7,3119.6,0.8012]
[1644937177070,1.1464,3120.7,3119.8,0.24035]
[1644937177274,0.00775896,3120.8,3120.0,0.4806425]
[1644937177471,0.00775896,3120.8,3119.7,1.90226]
[1644937177671,0.00546388,3120.8,3119.7,0.3]
[1644937177872,4.80890877,3120.8,3119.5,0.8039547]
[1644937178072,1.14098824,3119.7,3119.5,0.8039547]
[1644937178277,1.14098824,3119.7,3119.5,0.0026947]
[1644937178872,1.14098824,3119.7,3118.9,0.00512044]
[1644937179073,1.94250824,3119.7,3118.9,0.00512044]
[1644937179273,1.14098824,3119.7,3118.9,0.4808322]
[1644937179476,11.4415,3120.2,3119.0,0.00512044]
[1644937179673,11.4415,3120.2,3119.4,0.00253183]
[1644937180074,11.0718,3120.6,3119.4,0.00253183]
[1644937180324,11.0718,3120.6,3119.8,0.4806792]
[1644937180525,0.86878605,3120.4,3119.9,0.48068]
[1644937180727,0.13379858,3120.7,3120.0,0.54034]
[1644937181125,0.00549758,3120.7,3120.0,0.84034]
[1644937181328,0.00549758,3120.7,3120.0,1.3210014]
[1644937182516,1.19343324,3120.6,3120.0,0.3]
[1644937182712,1.19343324,3120.6,3119.9,0.3]
[1644937182912,1.19343324,3120.6,3119.8,0.78073]
[1644937183109,1.19343324,3120.6,3120.0,0.24037]
[1644937183313,1.19343324,3120.6,3120.0,0.54037]
[1644937183910,0.00548796,3120.5,3120.0,0.54037]
[1644937185771,0.00548796,3120.5,3120.0,0.24037]
[1644937186270,0.00548796,3120.5,3120.0,0.7210767]
[1644937186670,0.00548796,3120.5,3120.1,0.24035]
[1644937188204,3.39624683,3120.5,3120.1,0.24035]
[1644937188406,0.00548796,3120.5,3119.8,0.78074]
[1644937188605,0.00548796,3120.5,3119.5,0.48079]
[1644937188606,3.39475857,3120.5,3119.5,0.00238941]
[1644937188807,1.16018867,3119.6,3119.5,0.00238941]
[1644937189606,1.16018867,3119.6,3119.4,0.48593474]
[1644937189809,8.8671,3120.4,3119.4,0.72900058]
[1644937190010,0.00548796,3120.5,3119.9,0.80121]
[1644937190208,1.12858952,3120.5,3119.9,0.80121]
[1644937190606,0.00548796,3120.5,3119.9,1.10121]
[1644937191008,0.96227448,3120.4,3119.9,1.10121]
[1644937191310,0.96227448,3120.4,3120.0,1.2818899]
[1644937191561,0.96227448,3120.4,3120.0,1.8222499]
[1644937191761,0.96227448,3120.4,3120.0,1.0210499]
[1644937192564,0.00187199,3120.8,3120.1,0.80119]
[1644937192766,0.00187199,3120.8,3120.2,0.24032]
[1644937192970,0.00187199,3120.8,3120.2,0.62532]
[1644937193163,0.00187199,3120.8,3120.2,1.22532]
[1644937193567,0.00187199,3120.8,3120.4,0.80095]
[1644937193568,0.83651081,3120.7,3120.4,0.80095]
[1644937193765,0.83651081,3120.7,3120.5,0.24031]
[1644937193966,0.00187214,3120.8,3120.5,0.24031]
[1644937194366,6.5767,3121.5,3120.5,0.24031]
[1644937194765,0.00187223,3120.8,3120.5,0.7209071]
[1644937194965,0.00187223,3120.8,3120.6,0.48059]
[1644937195166,0.98490085,3120.8,3120.6,0.78059]
[1644937195410,0.98490085,3120.8,3120.6,1.58157]
[1644937195614,0.98302862,3120.8,3120.6,1.58157]
[1644937195807,48.33451783,3121.6,3120.6,1.58157]
[1644937196011,0.00229556,3120.9,3120.7,0.4805817]
[1644937196207,0.00229556,3120.9,3120.7,0.9611317]
[1644937196409,0.00229556,3120.9,3120.8,0.80092]
[1644937197009,0.85670829,3120.9,3120.8,0.80092]
[1644937197210,0.85441273,3120.9,3120.8,0.80092]
[1644937197411,0.85441273,3120.9,3120.8,1.10092]
[1644937197609,0.00229556,3121.0,3120.8,1.5814558]
[1644937198410,1.36023354,3121.5,3120.8,1.10092]
[1644937198411,0.00229556,3121.1,3120.8,1.10092]
[1644937198610,0.00229556,3121.1,3120.8,0.54028]
[1644937198814,1.1655048,3121.0,3120.7,0.3]
[1644937199059,0.0045307,3120.7,3120.5,0.3]
[1644937199260,0.0045307,3120.7,3120.3,1.90203]
[1644937199459,0.0045307,3120.7,3120.3,0.3]
[1644937199661,0.0045307,3120.7,3120.3,0.9611502]
[1644937200063,0.0045307,3120.7,3120.6,0.48061]
[1644937200261,0.0155507,3120.8,3120.6,1.58164]
[1644937200562,1.1655048,3121.0,3120.6,0.78061]
[1644937200871,47.08671783,3121.6,3120.6,0.78061]
[1644937200872,45.68718099,3121.6,3120.6,1.7417464]
[1644937201064,7.8951,3121.9,3120.7,0.7805929]
[1644937201266,6.3706,3122.2,3120.8,3.74025]
[1644937201474,1.35994438,3122.1,3121.0,0.80081]
[1644937201669,6.6726,3122.6,3121.1,22.565]
[1644937201864,1.35980881,3122.5,3121.3,18.63]
[1644937202063,1.35980881,3122.4,3121.4,0.385]
[1644937202264,9.3699,3122.9,3122.0,0.05251059]
[1644937202265,1.15235623,3122.2,3122.0,0.05251059]
[1644937202464,1.07009853,3121.8,3121.4,1.84018]
[1644937202821,1.15235623,3122.2,3121.5,0.80055]
[1644937203025,0.88890787,3121.7,3121.4,0.54018]
[1644937203224,0.88890787,3121.7,3120.7,4.7878]
[1644937203225,0.88890787,3121.7,3120.9,1.0]
[1644937203428,0.6130576,3122.5,3120.7,0.25]
[1644937203429,0.385,3122.3,3120.7,0.25]
[1644937203622,1.36015983,3122.2,3120.9,0.80093]
[1644937203823,1.36015983,3122.1,3120.9,0.80093]
[1644937204024,0.128254,3121.7,3120.9,0.80093]
[1644937204223,0.128254,3121.7,3120.7,1.60181]
[1644937204422,0.128254,3121.7,3120.7,0.48055]
[1644937204624,1.15769851,3121.6,3120.7,0.80098]
[1644937204925,1.19433173,3120.8,3120.2,0.5]
[1644937205122,0.52319997,3122.2,3120.4,1.0]
[1644937205123,8.9226,3121.9,3120.4,1.0]
[1644937205329,8.9226,3121.9,3120.6,1.4416572]
[1644937205522,8.9226,3121.9,3120.6,0.48057]
[1644937205722,8.9226,3121.9,3120.9,0.80084]
[1644937205927,8.9226,3121.9,3121.0,0.32035]
[1644937206123,0.88908546,3121.8,3121.0,0.32035]
[1644937206323,0.88908546,3121.8,3121.2,0.4805009]
[1644937206573,0.88908546,3121.8,3121.0,0.32035]
[1644937207575,0.88908546,3121.8,3121.2,1.2813654]
[1644937207777,0.88908546,3121.8,3121.2,0.4805254]
[1644937208879,0.88908546,3121.8,3121.3,1.5812834]
[1644937209079,0.05288027,3121.5,3121.3,0.7804634]
[1644937209283,0.05288027,3121.5,3121.3,1.0092634]
[1644937209683,0.05288027,3121.5,3121.3,1.9701901]
[1644937210083,0.05288027,3121.5,3121.4,0.80083]
[1644937210313,0.05288027,3121.6,3121.4,2.10083]
[1644937210518,0.60054853,3123.4,3121.7,18.68]
[1644937210716,6.4371,3123.6,3121.9,18.69207505]
[1644937210717,1.35972107,3123.3,3121.9,18.69207505]
[1644937210916,6.4371,3123.6,3121.9,0.39707505]
[1644937211123,1.35954206,3123.5,3123.3,1.0]
[1644937211316,1.13586919,3123.8,3123.3,1.0]
[1644937211515,1.3594186,3123.7,3123.3,1.4800902]
[1644937211715,1.3594186,3123.7,3123.3,0.4800902]
[1644937211916,0.7313804,3123.2,3122.7,1.0]
[1644937212116,0.7313804,3123.2,3123.1,0.3]
[1644937212318,0.82216173,3123.1,3123.0,2.6006]
[1644937212521,0.82216173,3123.1,3122.6,0.0563112]
[1644937213318,0.82216173,3123.1,3122.7,0.80045]
[1644937213516,1.14582259,3122.8,3122.6,0.0563112]
[1644937214782,1.74582259,3122.8,3122.6,0.0563112]
[1644937215369,3.3912911,3122.7,3122.6,0.0563112]
[1644937215572,1.14582259,3122.8,3122.6,0.0563112]
[1644937215769,1.27403759,3122.8,3122.6,0.0563112]
[1644937216169,1.14582259,3122.8,3122.6,0.0563112]
[1644937216376,1.14582259,3122.8,3122.3,0.01528152]
[1644937216772,1.44582259,3122.8,3122.3,0.01528152]
[1644937217171,0.00207083,3122.7,3122.3,0.01528152]
[1644937217815,0.00207083,3122.7,3122.3,0.81581152]
[1644937218015,1.14582259,3122.8,3122.3,0.80053]
[1644937218215,0.3,3123.0,3122.3,0.80053]
[1644937218416,0.00207083,3122.7,3122.3,0.960841]
[1644937218819,0.00207083,3122.7,3122.5,1.0]
[1644937219021,0.00335409,3122.7,3122.6,0.00886127]
[1644937219215,0.00128326,3122.7,3122.6,0.00886127]
[1644937219619,0.00128326,3122.7,3122.6,18.84917227]
[1644937219819,0.7313804,3123.2,3122.6,18.84917227]
[1644937219820,0.7313804,3123.2,3122.6,21.23417227]
[1644937220017,0.7313804,3123.2,3122.8,0.80023]
[1644937220424,0.7313804,3123.2,3123.0,1.0]
[1644937220817,0.7313804,3123.2,3123.1,0.160311]
[1644937221017,0.73365112,3123.2,3123.1,0.160311]
[1644937221670,0.7313804,3123.2,3123.1,0.960431]
[1644937221868,0.7313804,3123.2,3123.1,1.80012]
[1644937222066,0.7313804,3123.2,3122.9,1.0]
[1644937222269,0.7313804,3123.2,3123.0,0.5]
[1644937223067,1.0313804,3123.2,3123.0,0.5]
[1644937223265,1.0313804,3123.2,3122.6,0.00886127]
[1644937223266,0.6813804,3123.2,3122.6,0.00886127]
[1644937223467,0.86662493,3122.9,3122.6,0.00886127]
[1644937223668,0.86662493,3122.9,3122.7,0.5]
[1644937223969,0.86662493,3122.9,3122.6,0.00886127]
[1644937224176,1.96717493,3122.9,3122.5,0.00887566]
[1644937225170,2.76772493,3122.9,3122.5,0.00887566]
[1644937225814,3.56839713,3122.9,3122.5,0.00887566]
[1644937226212,2.76772493,3122.9,3122.5,0.00887566]
[1644937226816,0.3,3122.8,3122.5,0.00887566]
[1644937227014,2.702,3122.8,3122.5,0.00887566]
[1644937227212,3.76398837,3122.7,3122.5,0.00887566]
[1644937228015,3.76398837,3122.7,3122.3,0.01528151]
[1644937228214,4.86474837,3122.7,3122.3,0.01528151]
[1644937228414,1.98651,3122.6,3122.3,0.01528151]
[1644937228619,0.94438448,3122.4,3122.3,0.01528151]
[1644937228819,5.42580615,3122.4,3122.3,0.01528151]
[1644937229072,0.8009541,3122.3,3121.8,0.12790387]
[1644937229277,4.87707099,3122.2,3121.8,0.12790387]
[1644937229475,0.80089,3122.1,3121.8,0.12790387]
[1644937229674,3.83280484,3122.0,3121.8,0.12790387]
[1644937229872,3.68298845,3122.0,3121.8,0.12790387]
[1644937230273,3.98298845,3122.0,3121.8,0.12790387]
[1644937230475,6.7,3121.8,3121.0,0.01528151]
[1644937230676,3.5,3121.7,3120.4,0.05887483]
[1644937230877,0.8010156,3121.6,3120.4,0.05887483]
[1644937231072,0.93290899,3121.6,3120.4,0.05887483]
[1644937231277,1.23290899,3121.6,3120.4,0.0563112]
[1644937231473,2.03399899,3121.6,3121.2,0.04102967]
[1644937231676,1.9021056,3121.6,3121.2,0.04102967]
[1644937231875,38.90466232,3120.9,3120.4,0.0563112]
[1644937232081,39.9493089,3120.9,3120.4,0.0563112]
[1644937232274,40.2493089,3120.9,3120.4,0.0563112]
[1644937232674,40.2493089,3120.9,3120.5,0.04102967]
[1644937233514,38.90466232,3120.9,3120.5,0.04102967]
[1644937233717,1.2091,3121.8,3120.7,0.80089]
[1644937233917,1.2091,3121.8,3120.8,0.17559252]
[1644937234717,1.0436887,3121.1,3120.8,0.17559252]
[1644937235115,1.0436887,3121.1,3120.8,1.77707252]
[1644937236413,1.0436887,3121.1,3120.8,0.01528152]
[1644937236864,6.48603784,3121.9,3120.5,0.04102967]
[1644937237065,1.12278811,3121.3,3120.9,0.160311]
[1644937237267,0.14039862,3122.0,3120.9,0.160311]
[1644937237462,0.14039862,3122.0,3120.9,1.3614934]
[1644937237663,1.60321309,3121.9,3120.9,0.5606334]
[1644937237966,1.60321309,3121.9,3120.8,1.60157]
[1644937237967,1.60321309,3121.9,3121.0,0.160311]
[1644937238368,1.60321309,3121.9,3120.6,2.160311]
[1644937238369,0.80068,3121.8,3120.6,2.160311]
[1644937238566,0.80068,3121.8,3120.6,1.160311]
[1644937238567,0.80101,3121.7,3120.6,1.160311]
[1644937238765,37.4122943,3121.6,3120.6,0.80094]
[1644937238973,0.00215055,3121.0,3120.6,0.80094]
[1644937239869,0.00215055,3121.0,3120.6,1.8418822]
[1644937240064,0.00215055,3121.0,3120.7,1.6014]
[1644937240713,0.00215055,3121.0,3120.7,2.6014]
[1644937241114,0.00215055,3121.0,3120.7,1.6014]
[1644937242423,0.98612375,3120.9,3120.7,1.5514]
[1644937243018,0.00215055,3121.0,3120.7,1.5514]
[1644937243418,0.00215055,3121.0,3120.6,0.80094]
[1644937244063,1.12532386,3120.8,3120.6,0.80094]
[1644937244462,1.12532386,3120.8,3120.5,0.04102967]
[1644937244463,3.30424251,3120.7,3120.5,0.04102967]
[1644937244864,3.30424251,3120.7,3120.4,0.00240244]
[1644937245069,1.12532386,3120.8,3120.4,0.00240244]
[1644937245665,1.12532386,3120.8,3120.3,1.60187]
[1644937246166,1.12532386,3120.8,3120.4,0.00241242]
[1644937246365,0.128251,3121.0,3120.4,0.00241242]
[1644937246766,0.00214573,3121.5,3120.4,0.00241242]
[1644937246965,0.00214573,3121.5,3120.5,0.80098]
[1644937246966,0.80081,3121.4,3120.5,0.80098]
[1644937247167,0.3,3121.3,3120.5,0.80098]
[1644937247570,1.10954992,3121.2,3120.5,0.80098]
[1644937247811,0.8009,3121.1,3120.5,0.80098]
[1644937248911,0.00213611,3120.7,3120.5,0.80098]
[1644937250815,0.00213611,3120.7,3120.2,1.01528151]
[1644937251017,0.00213611,3120.7,3120.4,0.00241307]
[1644937251213,0.3,3120.6,3120.4,0.00241307]
[1644937251677,1.10108,3120.6,3120.4,0.00241307]
[1644937251877,1.10108,3120.6,3120.2,0.01528151]
[1644937251878,0.80108,3120.6,3120.2,0.01528151]
[1644937252077,0.8011389,3120.5,3120.2,0.01528151]
[1644937252677,1.1011389,3120.5,3120.2,0.01528151]
[1644937252880,1.01793602,3120.4,3120.2,0.81634151]
[1644937253277,1.01793602,3120.4,3120.2,0.01769439]
[1644937253879,0.00213129,3120.6,3120.2,0.01769439]
[1644937254080,0.00213129,3120.6,3120.2,0.80348288]
[1644937254278,0.00213129,3120.6,3120.2,0.80107]
[1644937255080,0.00213129,3120.6,3120.2,1.44181]
[1644937255315,0.00213129,3120.6,3120.3,0.80097]
[1644937255719,1.11185803,3120.4,3120.3,0.80097]
[1644937258913,1.11185803,3120.4,3120.3,0.81625149]
[1644937259378,1.11185803,3120.4,3120.2,1.00253438]
[1644937259582,1.11185803,3120.4,3120.2,0.00253438]
[1644937259878,4.44907958,3120.4,3120.3,0.01528149]
[1644937260080,4.48571018,3120.4,3120.3,0.01528149]
[1644937260278,1.11185803,3120.4,3120.3,0.01528149]
[1644937261078,1.11185803,3120.4,3120.3,0.05631115]
[1644937261280,1.11185803,3120.4,3120.1,0.00264963]
[1644937261479,0.00212648,3120.5,3119.8,1.05631116]
[1644937261480,0.90169818,3119.9,3119.8,1.05631116]
[1644937261680,0.90169818,3119.9,3119.8,0.05631116]
[1644937262079,0.90169818,3119.9,3119.8,0.09734082]
[1644937262483,4.42297395,3119.9,3119.8,0.09734082]
[1644937262917,0.90169818,3119.9,3119.8,0.09734082]
[1644937263116,0.90169818,3119.9,3119.8,0.11262231]
[1644937264118,1.70291818,3119.9,3119.8,0.04102966]
[1644937265118,0.90169818,3119.9,3119.8,0.08205932]
[1644937265325,0.80113,3120.1,3119.8,0.08205932]
[1644937265523,0.00212167,3120.4,3119.8,1.49985786]
[1644937265719,0.00212167,3120.4,3119.8,0.08205932]
[1644937265720,0.128263,3120.2,3119.8,0.08205932]
[1644937266119,0.00212167,3120.4,3120.1,1.0]
[1644937266319,0.00212167,3120.4,3120.2,0.80098]
[1644937266320,1.03391199,3120.3,3120.2,0.80098]
[1644937266765,1.03391199,3120.3,3119.8,0.09986331]
[1644937267362,1.03391199,3120.3,3119.8,0.89853081]
[1644937267564,1.83518199,3120.3,3119.8,0.89853081]
[1644937267762,1.83518199,3120.3,3119.9,0.00252908]
[1644937268662,1.83518199,3120.3,3119.8,0.09734081]
[1644937268864,1.83518199,3120.3,3119.9,0.00252906]
[1644937269067,3.43761879,3120.3,3119.9,0.00252906]
[1644937269265,0.80126,3120.2,3120.0,0.00469191]
[1644937270063,0.80126,3120.2,3120.0,0.04572157]
[1644937270318,1.9025567,3120.1,3120.0,0.04572157]
[1644937271120,1.9025567,3120.1,3120.0,0.06100306]
[1644937271519,1.1012767,3120.1,3120.0,0.06100306]
[1644937272116,1.1012767,3120.1,3120.0,0.10203272]
[1644937272316,1.1012767,3120.1,3120.0,0.04102966]
[1644937272517,1.9025467,3120.1,3119.9,0.00252863]
[1644937272716,0.80127,3120.1,3119.9,0.00252863]
[1644937273118,0.80127,3120.1,3119.3,0.25]
[1644937273318,0.95714261,3119.7,3119.2,1.0]
[1644937273722,0.8012,3119.9,3119.8,0.00252866]
[1644937274379,0.00269371,3120.1,3119.8,0.00252866]
[1644937274575,0.00269371,3120.1,3119.4,0.01011614]
[1644937274576,0.00269371,3120.1,3119.9,0.80115]
[1644937274776,0.98733495,3120.0,3119.9,0.80115]
[1644937274977,0.98963261,3120.0,3119.9,0.80115]
[1644937275977,0.00269371,3120.1,3119.9,4.30115]
[1644937276178,0.0049914,3120.1,3119.9,3.5]
[1644937276382,0.0049914,3120.1,3120.0,1.0]
[1644937277082,0.00269371,3120.1,3120.0,1.0]
[1644937278416,0.00269371,3120.1,3119.9,3.45]
[1644937278817,0.0026889,3120.0,3119.9,4.25118]
[1644937280321,0.0026889,3120.0,3119.9,5.25118]
[1644937280719,0.0026889,3120.0,3119.9,6.85118]
[1644937281118,12.44642102,3121.2,3119.9,25.53118]
[1644937281323,12.44642102,3121.2,3120.2,0.8009151]
[1644937281324,1.1772,3121.2,3120.2,0.8009151]
[1644937281589,0.60054853,3122.6,3120.4,23.68]
[1644937281786,1.35999685,3122.5,3120.6,18.68]
[1644937281985,1.35999685,3122.4,3121.0,20.60129]
[1644937282180,7.3798,3122.8,3121.0,20.60129]
[1644937282181,1.12799447,3122.1,3121.4,1.0]
[1644937282580,7.3798,3122.8,3121.4,1.0]
[1644937282781,1.35989594,3122.7,3121.4,1.0]
[1644937282981,1.35989594,3122.7,3121.4,2.52114]
[1644937282982,1.65989594,3122.7,3121.4,2.52114]
[1644937283182,1.35989594,3122.6,3121.4,5.52057]
[1644937283482,7.3798,3122.8,3121.9,1.0]
[1644937283483,1.35989594,3122.5,3121.9,1.0]
[1644937283684,1.35989594,3122.4,3121.9,1.0]
[1644937283884,1.08261648,3122.6,3121.8,1.0]
[1644937284093,1.35975844,3122.5,3122.0,0.80051]
[1644937284480,1.35975844,3122.5,3122.0,0.75051]
[1644937284683,0.00352095,3123.0,3122.0,0.70051]
[1644937284883,0.128202,3122.7,3122.0,0.70051]
[1644937285084,1.35977367,3122.6,3122.0,0.70051]
[1644937285311,1.08556559,3122.5,3122.0,0.70051]
[1644937285515,1.35977367,3122.4,3122.1,0.5603701]
[1644937285713,0.00229195,3122.5,3122.4,0.8005]
[1644937286718,1.35977133,3122.7,3122.4,0.8005]
[1644937286913,2.35226179,3122.6,3122.2,3.60097]
[1644937287113,1.35976548,3122.5,3122.4,0.80049]
[1644937287313,0.00229195,3122.6,3122.4,0.80049]
[1644937287514,0.00229195,3122.6,3122.4,1.52085]
[1644937287814,0.00352095,3122.9,3122.4,1.52085]
[1644937288013,1.04043097,3122.9,3122.4,1.52085]
[1644937288214,0.00229195,3122.7,3122.5,1.60083]
[1644937288815,0.00352095,3122.9,3122.5,1.60083]
[1644937289267,0.00352095,3123.1,3122.5,1.60083]
[1644937289660,1.10698847,3123.1,3122.5,1.84095]
[1644937289962,1.10698847,3123.1,3122.7,0.80039]
[1644937290763,50.66532295,3122.9,3122.7,1.3606644]
[1644937290962,0.00352095,3122.9,3122.7,1.6007744]
[1644937291165,0.00580717,3123.1,3122.8,3.39953703]
[1644937291365,0.00580717,3123.1,3122.9,1.80034]
[1644937291566,0.00352095,3123.1,3122.9,1.80034]
[1644937291770,0.68490135,3123.2,3122.9,0.80034]
[1644937291964,0.00228622,3123.0,3122.9,2.3605606]
[1644937292163,0.00228622,3123.0,3122.9,2.2105606]
[1644937292665,2.38085493,3123.6,3122.9,2.2105606]
[1644937292666,0.12817,3123.3,3122.9,2.2105606]
[1644937292923,0.00352095,3123.2,3122.9,2.2105606]
[1644937293119,0.00228622,3123.1,3122.9,2.2105606]
[1644937293521,0.00228622,3123.1,3122.9,5.7105606]
[1644937293919,0.00352095,3123.7,3122.9,5.7105606]
[1644937294119,0.00249711,3123.0,3122.9,5.30029]
[1644937297264,0.98303022,3123.0,3122.9,4.30029]
[1644937297467,0.98655117,3123.0,3122.9,3.5]
[1644937298262,0.00601806,3123.0,3122.8,0.00482621]
[1644937298462,0.00249711,3123.0,3122.8,0.00482621]
[1644937299065,0.00177569,3123.1,3122.9,0.00591139]
[1644937299662,0.00529664,3123.1,3122.9,0.00591139]
[1644937299863,0.86608113,3123.2,3122.9,0.00591139]
[1644937300311,0.86797081,3123.2,3122.9,0.00591139]
[1644937301113,0.01182278,3122.8,3122.5,3.5]
[1644937301714,0.01182278,3122.8,3122.5,3.74013]
[1644937302116,1.17624732,3122.7,3122.6,1.3607128]
[1644937302314,0.00352095,3122.7,3122.5,3.5]
[1644937302512,0.01182278,3122.8,3122.2,1.04706317]
[1644937302712,0.01182278,3122.8,3122.4,3.5]
[1644937302913,0.01182278,3122.8,3122.4,3.74014]
[1644937303516,0.01182278,3122.8,3122.6,0.8004]
[1644937303815,1.09534856,3122.8,3122.6,1.3607087]
[1644937304072,1.09886951,3122.8,3122.6,1.3607087]
[1644937304371,1.09886951,3122.8,3122.6,0.5603087]
[1644937305172,1.09886951,3122.8,3122.5,1.0406]
[1644937307174,1.09886951,3122.8,3122.6,1.3607255]
[1644937307378,0.01534373,3122.8,3122.6,0.80043]
[1644937307577,0.01534373,3122.8,3122.2,0.10780427]
[1644937307578,0.01182278,3122.8,3122.2,0.10780427]
[1644937307832,0.80077,3122.6,3122.2,0.10780427]
[1644937308026,0.00352095,3122.5,3122.2,0.10780427]
[1644937308226,0.30352095,3122.5,3122.2,0.10780427]
[1644937308425,1.10432095,3122.5,3122.2,0.10780427]
[1644937308627,0.89704403,3122.3,3122.2,0.10780427]
[1644937310829,0.80432095,3122.5,3122.2,0.10780427]
[1644937312079,0.00352095,3122.5,3122.2,0.10780427]
[1644937312273,0.13142661,3122.7,3122.6,0.00086134]
[1644937312687,0.00322161,3122.7,3122.6,0.00086134]
[1644937312873,0.00322161,3122.7,3122.6,1.12132604]
[1644937313274,0.00322161,3122.7,3122.6,1.12218738]
[1644937313872,0.01182278,3122.8,3122.6,1.12218738]
[1644937314172,0.01182278,3122.8,3122.7,0.80023]
[1644937314373,0.01182278,3122.8,3122.7,1.80023]
[1644937315422,0.01182278,3122.8,3122.7,2.18523]
[1644937316718,0.01182278,3122.8,3122.7,2.48523]
[1644937316917,0.01182278,3122.8,3122.7,3.48523]
[1644937318920,0.0150492,3122.8,3122.7,2.48650439]
[1644937319167,0.0150492,3122.8,3122.7,3.48650439]
[1644937319367,0.0150492,3122.8,3122.7,2.48650439]
[1644937319767,0.0150492,3122.8,3122.7,3.48650439]
[1644937319967,0.0150492,3122.8,3122.7,3.66838087]
[1644937320170,0.00352095,3123.8,3122.8,5.95]
[1644937320378,0.00352095,3123.8,3123.2,1.9205427]
[1644937320667,0.00352095,3123.8,3123.2,1.1203151]
[1644937320867,0.00352095,3123.8,3123.2,2.1203151]
[1644937321068,0.00352095,3123.8,3123.2,1.1203151]
[1644937321271,0.00352095,3123.8,3123.2,2.1203151]
[1644937321469,0.00352095,3123.8,3123.2,1.1203151]
[1644937321869,43.72431998,3123.7,3123.2,1.1203151]
[1644937322068,0.00352095,3123.6,3123.3,0.5601576]
[1644937322671,0.0018031,3123.7,3123.4,0.80023]
[1644937322931,0.89840576,3123.7,3123.1,0.04534046]
[1644937323125,0.8004,3123.5,3123.1,0.04534046]
[1644937323325,0.00352095,3123.4,3123.1,0.04534046]
[1644937323532,0.00352095,3123.4,3123.1,0.34534046]
[1644937323727,0.00352095,3123.4,3123.1,0.04534046]
[1644937323927,0.128165,3123.5,3123.4,0.00086134]
[1644937324328,0.00352095,3123.5,3123.4,0.00086134]
[1644937324529,0.00638731,3123.7,3123.4,0.00086134]
[1644937324731,0.00286636,3123.7,3123.4,0.00086134]
[1644937324927,0.00286636,3123.7,3123.4,0.56101804]
[1644937325128,0.00286636,3123.7,3123.5,0.80023]
[1644937325635,0.00474448,3123.7,3123.5,0.80023]
[1644937326031,0.00474448,3123.7,3123.5,1.10023]
[1644937326230,0.00474448,3123.7,3123.5,1.9003611]
[1644937326429,0.00286636,3123.7,3123.5,2.9003611]
[1644937326673,0.00286636,3123.7,3123.5,2.6003611]
[1644937326873,0.00286636,3123.7,3123.5,1.80023]
[1644937327074,1.36211114,3123.7,3123.5,1.0154006]
[1644937327274,1.36211114,3123.7,3123.5,0.0154006]
[1644937327474,1.36563209,3123.7,3123.5,0.0154006]